[Event "DMP-III LIGA Senior PK 2020"]
[Site "Bystre"]
[Date "2020.07.10"]
[Round "5.5"]
[White "Borukalo, Zdzislaw"]
[Black "Medrygal, Rafal"]
[Result "1-0"]
[ECO "C44"]
[WhiteElo "1679"]
[BlackElo "1258"]
[Annotator "NA RC"]
[PlyCount "111"]
[EventDate "2020.07.05"]
[EventType "team-tourn"]
[EventCountry "POL"]
[SourceTitle "playchess.com"]
[Source "ChessBase"]
[SourceQuality "1"]
[TimeControl "5400+30"]

1. e4 {[%emt 0:00:00]} e5 {[%emt 0:00:00]} 2. Nf3 {[%emt 0:00:00]} Nc6 {[%emt 0:00:00]} 3. d4 {[%emt 0:00:01]} exd4 {[%emt 0:00:41]} 4. Bc4 {[%emt 0:00:12]} Bb4+ 5. c3 {[%emt 0:02:13]} dxc3 {[%emt 0:04:47]} 6. O-O {[%emt 0:00:14]} Nf6 {[%emt 0:00:51]} 7. e5 {[%emt 0:02:28]} d5 {[%emt 0:09:19]} 8. exf6 {[%emt 0:04:10]} dxc4 {[%emt 0:02:12]} 9. fxg7 {[%emt 0:03:06]} Rg8 {[%emt 0:00:30]} 10. Qxd8+ {[%emt 0:04:59]} Nxd8 {[%emt 0:00:23]} 11. bxc3 {[%emt 0:00:38]} Be7 {[%emt 0:01:41]} 12. Re1 {[%emt 0:16:34]} Rxg7 {[%emt 0:02:12]} 13. Bg5 {[%emt 0:04:13]} Ne6 {[%emt 0:03:13]} 14. Bxe7 {[%emt 0:00:58]} Kxe7 {[%emt 0:00:10]} 15. Na3 {[%emt 0:00:13]} Bd7 {[%emt 0:00:42]} 16. Nd4 {[%emt 0:01:58]} c5 {[%emt 0:01:32]} 17. Nf5+ {[%emt 0:00:08]} Kf6 {[%emt 0:00:57]} 18. Nxg7 {[%emt 0:00:09]} Kxg7 {[%emt 0:00:14]} 19. Nxc4 {[%emt 0:00:09]} Nf4 {[%emt 0:02:05]} 20. Ne5 {[%emt 0:12:02]} Be6 {[%emt 0:00:50]} 21. a3 {[%emt 0:04:40]} Nd5 {[%emt 0:00:40]} 22. Rac1 {[%emt 0:04:38]} Kf6 {[%emt 0:01:08]} 23. g3 {[%emt 0:08:41]} Rg8 {[%emt 0:01:03]} 24. f3 {[%emt 0:14:24]} Nf4 {[%emt 0:02:59]} 25. Kf2 {[%emt 0:07:13]} Nh3+ {[%emt 0:01:30]} 26. Kf1 {[%emt 0:01:14]} Rd8 {[%emt 0:00:50]} 27. f4 {[%emt 0:02:54]} h5 {[%emt 0:00:37]} 28. Rcd1 {[%emt 0:01:06]} Rg8 {[%emt 0:00:26]} 29. Nd7+ {[%emt 0:00:47]} Kg6 {[%emt 0:02:00]} 30. Rxe6+ {[%emt 0:00:21]} fxe6 {[%emt 0:00:06]} 31. Kg2 {[%emt 0:00:04]} Nxf4+ {[%emt 0:00:13]} 32. gxf4 {[%emt 0:00:14]} Kf5+ {[%emt 0:01:00]} 33. Kf3 {[%emt 0:00:43]} Rg4 {[%emt 0:00:46]} 34. Nxc5 {[%emt 0:00:30]} Rxf4+ {[%emt 0:00:12]} 35. Ke3 {[%emt 0:02:10]} Rc4 {[%emt 0:03:20]} 36. Nxb7 {[%emt 0:01:20]} Rxc3+ {[%emt 0:00:24]} 37. Rd3 {[%emt 0:00:21]} Rc2 {[%emt 0:00:46]} 38. h3 {[%emt 0:00:35]} e5 {[%emt 0:00:47]} 39. Nd6+ {[%emt 0:00:21]} Ke6 {[%emt 0:01:27]} 40. Ne4 {[%emt 0:00:10]} Rh2 {[%emt 0:00:56]} 41. Nf2 {[%emt 0:00:08]} Rg2 {[%emt 0:00:28]} 42. Kf3 {[%emt 0:00:32]} Rg7 {[%emt 0:00:19]} 43. h4 {[%emt 0:02:19]} Kf5 {[%emt 0:01:51]} 44. Re3 {[%emt 0:00:31]} Re7 {[%emt 0:01:09]} 45. Re4 {[%emt 0:00:35]} Rc7 {[%emt 0:00:56]} 46. Nd3 {[%emt 0:01:08]} Re7 {[%emt 0:00:49]} 47. Nb4 {[%emt 0:00:39]} Rc7 {[%emt 0:01:16]} 48. Nd3 {[%emt 0:00:35]} Re7 {[%emt 0:00:12]} 49. Ne1 {[%emt 0:00:31]} Rc7 {[%emt 0:00:38]} 50. Ng2 {[%emt 0:00:13]} Rc3+ {[%emt 0:01:25]} 51. Ne3+ {[%emt 0:00:12]} Ke6 {[%emt 0:00:35]} 52. Ra4 {[%emt 0:00:10]} Rd3 {[%emt 0:01:30]} 53. Ra6+ {[%emt 0:00:35]} Kf7 {[%emt 0:00:57]} 54. Rxa7+ {[%emt 0:00:08]} Kg6 {[%emt 0:00:30]} 55. Ra6+ {[%emt 0:00:45]} Kg7 {[%emt 0:00:15]} 56. Ke4 {[%emt 0:00:25]} 1-0

[Event "DMP-III LIGA Senior PK 2020"]
[Site "Bystre"]
[Date "2020.07.10"]
[Round "5.6"]
[White "Trybowska, Anna"]
[Black "Krzysztynska, Anna"]
[Result "0-1"]
[ECO "A43"]
[WhiteElo "1583"]
[BlackElo "1857"]
[Annotator "NA RC"]
[PlyCount "76"]
[EventDate "2020.07.05"]
[EventType "team-tourn"]
[EventCountry "POL"]
[SourceTitle "playchess.com"]
[Source "ChessBase"]
[SourceQuality "1"]
[TimeControl "5400+30"]

{[%evp 10,76,51,-2,33,32767,32767,32767,-5,32767,32767,32767,32767,32767,32767,32767,32767,32767,32767,32767,32767,32767,-38,-41,-50,-43,32767,-40,-24,-27,32767,32767,32767,32767,32767,32767,44,18,70,-11,-6,15,11,-61,-70,-154,-174,-204,-225,-383,-413,-381,-417,-427,-455,-681,-761,-844,-707,-670,32767,-745,-857,32767,32767,32767,32767,-1668,-1227]} 1. d4 {[%emt 0:00:00]} c5 {[%emt 0:00:00]} 2. e3 {[%emt 0:00:00]} e6 {[%emt 0:00:35]} 3. c4 {[%emt 0:00:00]} g6 {[%emt 0:01:27]} 4. Nc3 {[%emt 0:00:07]} Bg7 {[%emt 0:00:34]} 5. Nf3 {[%emt 0:00:07]} Ne7 {[%emt 0:00:54]} 6. Bd3 {[%emt 0:00:15] A34: Symmetrical English: 2 Nc3, lines with ...d5.} (6. Ne4 $14) 6... O-O {[%emt 0:01:32]} 7. O-O {[%emt 0:00:10]} d6 {[%emt 0:01:06] [#]} 8. Qc2 $146 {[%emt 0:00:30]} ({Predecessor:} 8. Be2 Nbc6 9. Qd2 cxd4 10. Nxd4 Nxd4 11. exd4 d5 12. Qd3 dxc4 13. Qxc4 Qxd4 14. Qb3 {0-1 (41) Filipkowska,M (1600)-Mierska,A (1800) Leba 2006}) 8... Nbc6 {[%emt 0:01:39]} 9. dxc5 {[%emt 0:00:31]} Nb4 {[%emt 0:02:09]} 10. Qd2 {[%emt 0:01:54]} dxc5 {[%emt 0:01:26]} 11. Be2 {[%emt 0:00:32]} Qc7 {[%emt 0:12:02]} 12. Nb5 {[%emt 0:01:05]} Qb6 {[%emt 0:02:59]} 13. Qd6 {[%emt 0:00:55]} Nbc6 {[%emt 0:04:09]} 14. Qc7 {[%emt 0:01:32]} Qxc7 {[%emt 0:01:01]} 15. Nxc7 {[%emt 0:00:05]} Rb8 {[%emt 0:00:21]} 16. Nb5 {[%emt 0:00:17]} b6 {[%emt 0:04:13]} 17. Rb1 {[%emt 0:02:03]} Bb7 {[%emt 0:03:23]} 18. b3 {[%emt 0:01:15]} a6 {[%emt 0:02:06]} 19. Nd6 {[%emt 0:00:48]} Ba8 {[%emt 0:01:28]} 20. Bb2 {[%emt 0:00:33]} e5 {[%emt 0:10:00]} 21. Rfd1 {[%emt 0:01:33]} Rfd8 {[%emt 0:03:47]} 22. Ng5 {[%emt 0:01:03]} Rf8 {[%emt 0:10:43]} 23. h4 {[%emt 0:07:05]} h6 {[%emt 0:01:04] [#]} 24. Nge4 {[%emt 0:00:29]} (24. Ngxf7 $1 $16 Rxf7 25. Nxf7 Kxf7 26. h5) 24... f5 {[%emt 0:01:13]} 25. Nc3 {[%emt 0:01:40]} Rfd8 {[%emt 0:05:22]} 26. h5 {[%emt 0:04:01] [#]} ({White should play} 26. Na4 $11) 26... Nd4 $1 {[%emt 0:08:09]} 27. hxg6 {[%emt 0:05:45]} (27. exd4 $15 exd4 28. Ndb5) 27... Rxd6 {[%emt 0:00:37]} 28. exd4 {[%emt 0:00:07]} exd4 {[%emt 0:00:08]} ({Don't do} 28... cxd4 29. Bh5) 29. Bh5 $2 {[%emt 0:03:14]} (29. Nd5 Nxd5 30. cxd5) 29... dxc3 {[%emt 0:02:10]} 30. Rxd6 {[%emt 0:00:48]} cxb2 {[%emt 0:00:13]} 31. f3 {[%emt 0:02:42]} Nc6 {[%emt 0:01:38]} 32. g4 {[%emt 0:00:58]} (32. Rd2 $142) 32... f4 {[%emt 0:02:58]} 33. Rd7 {[%emt 0:00:31]} Nd4 {[%emt 0:01:05]} 34. g5 {[%emt 0:01:49]} hxg5 {[%emt 0:00:20]} 35. Kf2 {[%emt 0:00:19]} Nc2 {[%emt 0:00:27]} 36. Rxg7+ {[%emt 0:00:27]} Kxg7 {[%emt 0:00:10]} 37. Rxb2 {[%emt 0:00:03]} Nd4 {[%emt 0:00:08]} 38. Rd2 {[%emt 0:00:21]} Bc6 $19 {[%emt 0:00:43]} 0-1

[Event "DMP-III LIGA Senior PK 2020"]
[Site "Bystre"]
[Date "2020.07.10"]
[Round "5.9"]
[White "Szaro, Mariusz"]
[Black "Palacki, Rafal"]
[Result "1/2-1/2"]
[ECO "A46"]
[WhiteElo "1559"]
[BlackElo "1755"]
[Annotator "NA RC"]
[PlyCount "22"]
[EventDate "2020.07.05"]
[EventType "team-tourn"]
[EventCountry "POL"]
[SourceTitle "playchess.com"]
[Source "ChessBase"]
[SourceQuality "1"]
[TimeControl "5400+30"]

1. d4 {[%emt 0:00:00]} e6 {[%emt 0:00:00]} 2. Nf3 {[%emt 0:02:13]} Nf6 {[%emt 0:00:05]} 3. Bg5 {[%emt 0:00:31]} d5 {[%emt 0:01:13]} 4. e3 {[%emt 0:00:35]} c5 {[%emt 0:01:26]} 5. c3 {[%emt 0:01:20]} Nbd7 {[%emt 0:01:02]} 6. Ne5 {[%emt 0:02:31]} Bd6 {[%emt 0:01:38]} 7. f4 {[%emt 0:00:13]} h6 {[%emt 0:01:13]} 8. Bh4 {[%emt 0:01:40]} g5 {[%emt 0:08:29]} 9. fxg5 {[%emt 0:12:12]} Ne4 {[%emt 0:14:04]} 10. Qh5 {[%emt 0:05:33]} Bxe5 {[%emt 0:02:47]} 11. dxe5 {[%emt 0:00:23]} Nxg5 {[%emt 0:00:25]} 1/2-1/2

[Event "DMP-III LIGA Senior PK 2020"]
[Site "Bystre"]
[Date "2020.07.10"]
[Round "5.11"]
[White "Dziura, Wiktor"]
[Black "Materniak, Aleksander"]
[Result "1/2-1/2"]
[ECO "A00"]
[WhiteElo "1353"]
[BlackElo "1660"]
[Annotator "NA"]
[PlyCount "47"]
[EventDate "2020.07.05"]
[EventType "team-tourn"]
[EventCountry "POL"]
[SourceTitle "playchess.com"]
[Source "ChessBase"]
[SourceQuality "1"]
[TimeControl "5400+30"]

1. g3 {[%emt 0:00:00]} d5 {[%emt 0:00:00]} 2. Bg2 {[%emt 0:00:00]} Nf6 {[%emt 0:00:24]} 3. c4 {[%emt 0:00:00]} e6 {[%emt 0:00:52]} 4. cxd5 {[%emt 0:00:37]} exd5 {[%emt 0:00:11]} 5. Nf3 {[%emt 0:00:24]} Be7 {[%emt 0:01:01]} 6. d3 {[%emt 0:00:41]} O-O {[%emt 0:00:49]} 7. O-O {[%emt 0:00:11]} c5 {[%emt 0:02:39]} 8. Bf4 {[%emt 0:01:04]} Nc6 {[%emt 0:02:49]} 9. d4 {[%emt 0:03:40]} Ne4 {[%emt 0:02:34]} 10. Nc3 {[%emt 0:01:47]} Be6 {[%emt 0:03:45]} 11. dxc5 {[%emt 0:06:03]} Bxc5 {[%emt 0:03:18]} 12. Nxe4 {[%emt 0:01:10]} dxe4 {[%emt 0:00:12]} 13. Ng5 {[%emt 0:00:31]} e3 {[%emt 0:08:32]} 14. Bxe3 {[%emt 0:03:59]} Bxe3 {[%emt 0:02:05]} 15. Qxd8 {[%emt 0:00:25]} Raxd8 {[%emt 0:06:52]} 16. fxe3 {[%emt 0:00:56]} Rd2 {[%emt 0:00:39]} 17. Nxe6 {[%emt 0:02:48]} fxe6 {[%emt 0:00:33]} 18. Rxf8+ {[%emt 0:01:22]} Kxf8 {[%emt 0:00:08]} 19. Rc1 {[%emt 0:00:17]} Rxb2 {[%emt 0:04:54]} 20. Bxc6 {[%emt 0:04:03]} bxc6 {[%emt 0:00:08]} 21. Rxc6 {[%emt 0:00:04]} Rxa2 {[%emt 0:01:26]} 22. Rxe6 {[%emt 0:00:13]} Rxe2 {[%emt 0:05:11]} 23. Ra6 {[%emt 0:08:14]} Rxe3 {[%emt 0:00:16]} 24. Rxa7 {[%emt 0:00:06]} 1/2-1/2

[Event "DMP-III LIGA Senior PK 2020"]
[Site "Bystre"]
[Date "2020.07.10"]
[Round "5.12"]
[White "Tarsa, Joanna"]
[Black "Kruczek, Aleksandra"]
[Result "1-0"]
[ECO "B32"]
[WhiteElo "1574"]
[BlackElo "1038"]
[Annotator "NA"]
[PlyCount "57"]
[EventDate "2020.07.05"]
[EventType "team-tourn"]
[EventCountry "POL"]
[SourceTitle "playchess.com"]
[Source "ChessBase"]
[SourceQuality "1"]
[TimeControl "5400+30"]

1. e4 c5 2. Nf3 Nc6 3. d4 d5 4. exd5 Qxd5 5. Nc3 Qe6+ 6. Be3 cxd4 7. Nxd4 Nxd4 8. Qxd4 Nf6 9. O-O-O Bd7 10. Bb5 Rd8 11. Qa4 g6 12. Bxd7+ Nxd7 13. Nd5 Qe5 14. Bf4 Qxd5 15. Rxd5 Bg7 16. Rhd1 O-O 17. Rxd7 Rxd7 18. Rxd7 a6 19. Rxe7 h6 20. Re8 b5 21. Rxf8+ Bxf8 22. Qxa6 b4 23. Qc8 b3 24. axb3 Kg7 25. Be5+ f6 26. Qd7+ Kg8 27. Qe6+ Kh7 28. Qf7+ Kh8 29. Bxf6+ 1-0

[Event "DMP-III LIGA Senior PK 2020"]
[Site "Bystre"]
[Date "2020.07.10"]
[Round "5.17"]
[White "Sygulski, Piotr"]
[Black "Karas, Kacper"]
[Result "1-0"]
[ECO "B90"]
[WhiteElo "1652"]
[BlackElo "1150"]
[Annotator "NA RC"]
[PlyCount "67"]
[EventDate "2020.07.05"]
[EventType "team-tourn"]
[EventCountry "POL"]
[SourceTitle "playchess.com"]
[Source "ChessBase"]
[SourceQuality "1"]
[TimeControl "5400+30"]

1. e4 {[%emt 0:00:00]} c5 {[%emt 0:00:00]} 2. Ne2 {[%emt 0:00:00]} d6 {[%emt 0:00:02]} 3. d4 {[%emt 0:00:08]} cxd4 {[%emt 0:00:08]} 4. Nxd4 {[%emt 0:00:02]} Nf6 {[%emt 0:00:05]} 5. Nc3 {[%emt 0:00:03]} a6 {[%emt 0:00:04]} 6. Bd3 {[%emt 0:01:11]} e6 {[%emt 0:01:24]} 7. O-O {[%emt 0:01:49]} Be7 {[%emt 0:00:29]} 8. Be3 {[%emt 0:01:50]} b5 {[%emt 0:08:09]} 9. a3 {[%emt 0:02:56]} Bb7 {[%emt 0:01:00]} 10. f4 {[%emt 0:02:40]} Nbd7 {[%emt 0:02:55]} 11. Kh1 {[%emt 0:05:23]} Rc8 {[%emt 0:01:26]} 12. Nf3 {[%emt 0:05:52]} Rxc3 {[%emt 0:04:38]} 13. bxc3 {[%emt 0:00:38]} Nxe4 {[%emt 0:15:50]} 14. Bxe4 {[%emt 0:03:23]} Bxe4 {[%emt 0:00:21]} 15. a4 {[%emt 0:03:38]} bxa4 {[%emt 0:15:39]} 16. Rxa4 {[%emt 0:00:34]} Bc6 {[%emt 0:00:08]} 17. Ra1 {[%emt 0:01:36]} Bb5 {[%emt 0:01:22]} 18. Re1 {[%emt 0:00:54]} Nf6 {[%emt 0:02:18]} 19. Nd4 {[%emt 0:02:06]} Bc4 {[%emt 0:03:17]} 20. Nc6 {[%emt 0:03:15]} Qc7 {[%emt 0:02:08]} 21. Nxe7 {[%emt 0:02:55]} Kxe7 {[%emt 0:17:11]} 22. f5 {[%emt 0:01:45]} e5 {[%emt 0:02:41]} 23. Bg5 {[%emt 0:04:18]} h5 {[%emt 0:05:10]} 24. Qf3 {[%emt 0:03:38]} Bb5 {[%emt 0:07:07]} 25. Qe4 {[%emt 0:03:52]} Bc6 {[%emt 0:00:41]} 26. Qb4 {[%emt 0:00:09]} Bb5 {[%emt 0:00:32]} 27. Rxe5+ {[%emt 0:00:16]} Kd7 {[%emt 0:01:50]} 28. Rd1 {[%emt 0:04:03]} Rb8 {[%emt 0:03:51]} 29. Bxf6 {[%emt 0:00:58]} gxf6 {[%emt 0:00:07]} 30. Red5 {[%emt 0:00:30]} Rb6 {[%emt 0:02:02]} 31. Qd4 {[%emt 0:00:59]} a5 {[%emt 0:01:38]} 32. Qxf6 {[%emt 0:00:36]} Be2 {[%emt 0:00:59]} 33. Qxf7+ {[%emt 0:00:33]} Kc8 {[%emt 0:00:09]} 34. Qe8+ {[%emt 0:00:03]} 1-0

[Event "DMP-III LIGA Senior PK 2020"]
[Site "Bystre"]
[Date "2020.07.10"]
[Round "5.18"]
[White "Uliasz, Katarzyna"]
[Black "Zgoda, Aleksandra"]
[Result "1-0"]
[ECO "B20"]
[WhiteElo "1386"]
[BlackElo "1203"]
[Annotator "NA"]
[PlyCount "115"]
[EventDate "2020.07.05"]
[EventType "team-tourn"]
[EventCountry "POL"]
[SourceTitle "playchess.com"]
[Source "ChessBase"]
[SourceQuality "1"]
[TimeControl "5400+30"]

1. e4 {[%emt 0:00:00]} c5 {[%emt 0:00:00]} 2. d3 {[%emt 0:00:00]} e6 {[%emt 0:00:00]} 3. Nf3 {[%emt 0:00:00]} Nc6 {[%emt 0:00:26]} 4. g3 {[%emt 0:00:00]} Qc7 {[%emt 0:00:24]} 5. Bg2 {[%emt 0:00:05]} d5 {[%emt 0:00:45]} 6. Nbd2 {[%emt 0:00:31]} Nf6 {[%emt 0:00:43]} 7. O-O {[%emt 0:00:14]} Bd6 {[%emt 0:00:46]} 8. Re1 {[%emt 0:02:02]} O-O {[%emt 0:00:47]} 9. Qe2 {[%emt 0:02:20]} Nd7 {[%emt 0:02:27]} 10. c3 {[%emt 0:05:30]} d4 {[%emt 0:07:29]} 11. Ng5 {[%emt 0:12:03]} h6 {[%emt 0:05:33]} 12. Nh3 {[%emt 0:00:21]} b5 {[%emt 0:04:59]} 13. f4 {[%emt 0:00:55]} e5 {[%emt 0:03:38]} 14. f5 {[%emt 0:07:27]} Bb7 {[%emt 0:04:32]} 15. g4 {[%emt 0:01:03]} Be7 {[%emt 0:02:28]} 16. Nf1 {[%emt 0:03:18]} Qd8 {[%emt 0:05:28]} 17. Ng3 {[%emt 0:00:48]} Kh7 {[%emt 0:02:05]} 18. g5 {[%emt 0:04:55]} Rg8 {[%emt 0:07:22]} 19. Qh5 {[%emt 0:08:32]} Qf8 {[%emt 0:02:10]} 20. Rf1 {[%emt 0:12:51]} f6 {[%emt 0:09:07]} 21. gxh6 {[%emt 0:02:19]} gxh6 {[%emt 0:00:52]} 22. Nf2 {[%emt 0:03:08]} Nd8 {[%emt 0:02:43]} 23. Ng4 {[%emt 0:02:08]} Nf7 {[%emt 0:01:20]} 24. Bd2 {[%emt 0:08:03]} Rd8 {[%emt 0:02:57]} 25. cxd4 {[%emt 0:00:14]} cxd4 {[%emt 0:01:24]} 26. Rac1 {[%emt 0:00:18]} Rc8 {[%emt 0:00:51]} 27. Rxc8 {[%emt 0:00:13]} Bxc8 {[%emt 0:00:41]} 28. Rc1 {[%emt 0:00:14]} Ng5 {[%emt 0:08:12]} 29. h4 {[%emt 0:01:45]} Nf7 {[%emt 0:00:42]} 30. Rxc8 {[%emt 0:01:24]} Qxc8 {[%emt 0:03:28]} 31. Qxf7+ {[%emt 0:09:48]} Rg7 {[%emt 0:01:23]} 32. Qh5 {[%emt 0:00:15]} Qf8 {[%emt 0:10:57]} 33. Bxh6 {[%emt 0:03:39]} Kg8 {[%emt 0:00:37]} 34. Bxg7 {[%emt 0:00:51]} Qxg7 {[%emt 0:01:16]} 35. Qg6 {[%emt 0:05:55]} Qxg6 {[%emt 0:01:19]} 36. fxg6 {[%emt 0:00:01]} Nf8 {[%emt 0:00:17]} 37. h5 {[%emt 0:00:08]} Ne6 {[%emt 0:00:17]} 38. Nf5 {[%emt 0:00:10]} Bd8 {[%emt 0:00:27]} 39. g7 {[%emt 0:02:01]} Nxg7 {[%emt 0:00:44]} 40. Nxg7 {[%emt 0:00:04]} Kxg7 {[%emt 0:00:07]} 41. Kf2 {[%emt 0:00:23]} Be7 {[%emt 0:00:38]} 42. Bf3 {[%emt 0:00:29]} a5 {[%emt 0:00:21]} 43. Nh2 {[%emt 0:00:52]} Kh6 {[%emt 0:00:52]} 44. Nf1 {[%emt 0:00:06]} a4 {[%emt 0:00:37]} 45. Ng3 {[%emt 0:00:05]} Kg5 {[%emt 0:00:55]} 46. Nf5 {[%emt 0:00:09]} Bf8 {[%emt 0:00:12]} 47. h6 {[%emt 0:02:28]} Bxh6 {[%emt 0:00:27]} 48. Nxh6 {[%emt 0:00:05]} Kxh6 {[%emt 0:00:05]} 49. Bg4 {[%emt 0:00:26]} b4 {[%emt 0:00:19]} 50. a3 {[%emt 0:00:09]} bxa3 {[%emt 0:00:32]} 51. bxa3 {[%emt 0:00:32]} Kg6 {[%emt 0:00:19]} 52. Bd7 {[%emt 0:00:00]} Kf7 {[%emt 0:00:15]} 53. Bxa4 {[%emt 0:00:00]} Ke7 {[%emt 0:00:15]} 54. Bb5 {[%emt 0:00:00]} Kd8 {[%emt 0:00:10]} 55. a4 {[%emt 0:00:05]} Kc7 {[%emt 0:00:08]} 56. Kg3 {[%emt 0:00:09]} Kb6 {[%emt 0:00:33]} 57. Kg4 {[%emt 0:00:06]} Kc7 {[%emt 0:00:07]} 58. Kf5 {[%emt 0:00:04]} 1-0

[Event "DMP-III LIGA Senior PK 2020"]
[Site "Bystre"]
[Date "2020.07.10"]
[Round "5.19"]
[White "Miasik, Adrian"]
[Black "Lopuszanski, Kamil"]
[Result "1/2-1/2"]
[ECO "E92"]
[WhiteElo "1881"]
[BlackElo "1995"]
[Annotator "ChessBase"]
[PlyCount "76"]
[EventDate "2020.07.05"]
[EventType "team-tourn"]
[EventCountry "POL"]
[SourceTitle "playchess.com"]
[Source "ChessBase"]
[SourceQuality "1"]
[TimeControl "5400+30"]

1. d4 {[%emt 0:00:00]} Nf6 {[%emt 0:00:00]} 2. Nf3 {[%emt 0:00:52]} g6 {[%emt 0:00:00]} 3. c4 {[%emt 0:01:52]} Bg7 {[%emt 0:00:06]} 4. Nc3 {[%emt 0:00:34]} O-O {[%emt 0:00:16]} 5. e4 {[%emt 0:00:16]} d6 {[%emt 0:00:16]} 6. Be2 {[%emt 0:01:03]} e5 {[%emt 0:00:37]} 7. dxe5 {[%emt 0:01:22]} dxe5 {[%emt 0:00:08]} 8. Qxd8 {[%emt 0:00:13]} Rxd8 {[%emt 0:00:05]} 9. Bg5 {[%emt 0:00:06]} Re8 {[%emt 0:00:04]} 10. h3 {[%emt 0:10:21]} h6 {[%emt 0:00:25]} 11. Be3 {[%emt 0:00:38]} c6 {[%emt 0:01:53]} 12. O-O {[%emt 0:09:07]} Nbd7 {[%emt 0:00:16]} 13. b4 {[%emt 0:05:06]} Bf8 {[%emt 0:02:56]} 14. a3 {[%emt 0:06:56]} a5 {[%emt 0:07:55]} 15. c5 {[%emt 0:13:46]} b6 {[%emt 0:02:54]} 16. cxb6 {[%emt 0:06:30]} axb4 {[%emt 0:01:47]} 17. axb4 {[%emt 0:00:23]} Rxa1 {[%emt 0:02:32]} 18. Rxa1 {[%emt 0:00:04]} Bxb4 {[%emt 0:01:01]} 19. Na4 {[%emt 0:04:28]} Nxe4 {[%emt 0:06:53]} 20. Rb1 {[%emt 0:02:06]} c5 {[%emt 0:02:31]} 21. Bb5 {[%emt 0:00:59]} Nd6 {[%emt 0:16:11]} 22. Bc6 {[%emt 0:08:29]} Nb7 {[%emt 0:18:16]} 23. Rd1 {[%emt 0:05:44]} Re7 {[%emt 0:00:15]} 24. Bxh6 {[%emt 0:09:13]} Na5 {[%emt 0:02:09]} 25. Bd5 {[%emt 0:00:53]} Kh7 {[%emt 0:05:43]} 26. Bd2 {[%emt 0:01:42]} Nf6 {[%emt 0:10:40]} 27. Ng5+ {[%emt 0:02:45]} Kg7 {[%emt 0:00:21]} 28. Bxb4 {[%emt 0:04:35]} cxb4 {[%emt 0:00:26]} 29. Nc5 {[%emt 0:01:30]} Nxd5 {[%emt 0:01:59]} 30. Rxd5 {[%emt 0:00:04]} Nc4 {[%emt 0:02:04]} 31. Nd3 {[%emt 0:01:13]} f6 {[%emt 0:04:49]} 32. Ne4 {[%emt 0:00:18]} Bb7 {[%emt 0:03:09]} 33. Nxb4 {[%emt 0:00:49]} Bxd5 {[%emt 0:01:14]} 34. Nxd5 {[%emt 0:00:05]} Re6 {[%emt 0:02:17]} 35. b7 {[%emt 0:00:36]} Re8 36. Nc7 {[%emt 0:00:31]} Rb8 {[%emt 0:00:41]} 37. Nc5 {[%emt 0:00:09]} Nd6 {[%emt 0:00:30]} 38. N7a6 {[%emt 0:00:11]} Rxb7 {[%emt 0:00:27]} 1/2-1/2

[Event "DMP-III LIGA Senior PK 2020"]
[Site "Bystre"]
[Date "2020.07.10"]
[Round "5.20"]
[White "Mazurkiewicz, Andrzej"]
[Black "Ciasnocha, Michal"]
[Result "1/2-1/2"]
[ECO "D10"]
[WhiteElo "1608"]
[BlackElo "1795"]
[Annotator "NA RC"]
[PlyCount "53"]
[EventDate "2020.07.05"]
[EventType "team-tourn"]
[EventCountry "POL"]
[SourceTitle "playchess.com"]
[Source "ChessBase"]
[SourceQuality "1"]
[TimeControl "5400+30"]

1. d4 {[%emt 0:00:00]} d5 {[%emt 0:00:00]} 2. c4 {[%emt 0:00:00]} c6 {[%emt 0:00:00]} 3. Nc3 {[%emt 0:00:41]} Nf6 {[%emt 0:00:00]} 4. cxd5 {[%emt 0:00:35]} cxd5 {[%emt 0:00:08]} 5. Bf4 {[%emt 0:01:10]} a6 {[%emt 0:01:52]} 6. Nf3 {[%emt 0:00:27]} Nc6 {[%emt 0:00:40]} 7. h3 {[%emt 0:00:29]} e6 {[%emt 0:01:36]} 8. e3 {[%emt 0:00:27]} Qa5 {[%emt 0:05:29]} 9. Bd3 {[%emt 0:01:42]} Be7 {[%emt 0:04:13]} 10. O-O {[%emt 0:00:21]} O-O {[%emt 0:00:50]} 11. a3 {[%emt 0:00:20]} b5 {[%emt 0:04:33]} 12. b4 {[%emt 0:01:30]} Qb6 {[%emt 0:02:44]} 13. Rc1 {[%emt 0:01:22]} Bb7 {[%emt 0:01:53]} 14. Nd2 {[%emt 0:02:12]} Rfc8 {[%emt 0:08:08]} 15. Nb3 {[%emt 0:00:28]} a5 {[%emt 0:02:08]} 16. Nxb5 {[%emt 0:05:41]} axb4 {[%emt 0:01:18]} 17. a4 {[%emt 0:14:23]} Rxa4 {[%emt 0:08:53]} 18. Nc5 {[%emt 0:00:09]} Ra5 {[%emt 0:05:24]} 19. Nd6 {[%emt 0:05:19]} Bxd6 {[%emt 0:03:01]} 20. Bxd6 {[%emt 0:00:06]} Rd8 {[%emt 0:06:20]} 21. Bf4 {[%emt 0:01:32]} h6 {[%emt 0:08:41]} 22. h4 {[%emt 0:01:33]} Ra3 {[%emt 0:07:21]} 23. g4 {[%emt 0:01:15]} e5 {[%emt 0:08:59]} 24. g5 {[%emt 0:10:22]} Ne4 {[%emt 0:01:16]} 25. Bxe4 dxe4 26. Bg3 exd4 27. Nxb7 1/2-1/2